Cogmind - Beta 16.1 @@@ ROGUE MODE // 2026.02.11 @ 17:03:25 Player: notme Result: Destroyed by G-34 Mercenary with Small Laser Performance ------------- Evolutions (1) 500 Regions Visited (3) 600 Robots Destroyed (48) 240 Value Destroyed (1198) 1198 Prototype IDs (2) 40 Alien Tech Used (0) 0 Bonus (0) 0 TOTAL SCORE: 2578 Bonus ------- None Cogmind --------- Core Integrity 0/400 Matter 280/300 Energy 250/250 System Corruption 8% Temperature Cool (6) Movement Walking (185) Ox1 Location -9/Materials Parts ------- > --- POWER (1) -------- Ion Engine > --- PROPULSION (3) --- Aluminum Leg Aluminum Leg Improved Aluminum Leg > --- UTILITY (3) ------ Large Storage Unit Power Shielding Improved Utility Shielding > --- WEAPON (2) ------- Beam Rifle Improved Light Cannon > --- INVENTORY (15) --- Ion Engine Ion Engine Aluminum Leg Aluminum Leg Aluminum Leg Aluminum Leg Aluminum Leg Scrap Suit Propulsion Shielding Improved Utility Shielding Improved Utility Shielding System Shield Light Assault Rifle Blade Saw Peak State ------------ > --- POWER ------------ Improved Ion Engine > --- PROPULSION ------- Aluminum Leg Improved Aluminum Leg Improved Aluminum Leg > --- UTILITY ---------- Large Storage Unit Light Armor Plating System Shield > --- WEAPON ----------- Light Assault Rifle Heavy Assault Rifle > --- INVENTORY -------- Ion Engine Improved Ion Engine Improved Aluminum Leg Improved Aluminum Leg Scrap Suit Improved Utility Shielding Improved Utility Shielding Improved Utility Shielding System Shield Beam Cannon Light Assault Rifle Blade Saw Blade Saw [Rating: 18] Favorites ----------- Power Ion Engine Engine Ion Engine Propulsion Aluminum Leg Leg Aluminum Leg Utility Power Shielding Device Sensor Array Storage Large Storage Unit Hackware System Shield Protection Power Shielding Weapon Light Assault Rifle Energy Gun Small Laser Ballistic Gun Light Assault Rifle Ballistic Cannon Improved Light Cannon Build | -11 -10 -10 -9 ------- Run | Yrd Mat Min Mat Slots Evolved 2 | . . . 2 Power . | . . . . Propulsion 1 | . . . 1 Utility 1 | . . . 1 Weapon . | . . . . Parts Attached 44 | 5 8 2 29 Power 5 | . 1 . 4 Engine 5 | . 1 . 4 Core . | . . . . Reactor . | . . . . Propulsion 19 | 2 4 1 12 Treads . | . . . . Leg 19 | 2 4 1 12 Wheel . | . . . . Hover . | . . . . Flight . | . . . . Utility 10 | 1 2 1 6 Device 1 | . . . 1 Storage 3 | 1 1 . 1 Processor . | . . . . Hackware 1 | . . . 1 Protection 5 | . 1 1 3 Artifact . | . . . . Weapon 10 | 2 1 . 7 Energy Gun 3 | 1 . . 2 Energy Cannon . | . . . . Ballistic Gun 6 | 1 1 . 4 Ballistic Cannon 1 | . . . 1 Launcher . | . . . . Special Weapon . | . . . . Impact Weapon . | . . . . Slashing Weapon . | . . . . Piercing Weapon . | . . . . Special Melee Weapon . | . . . . Unidentified Prototypes . | . . . . Parts Lost 13 | . . . 13 Power 2 | . . . 2 Propulsion 3 | . . . 3 Utility 4 | . . . 4 Weapon 4 | . . . 4 Highest Loss Streak 10 | . . . 10 To Critical Strikes . | . . . . Average Backups 10 | 2 7 9 12 Power 1 | . 1 1 1 Propulsion 2 | . 2 3 2 Utility 3 | . 2 3 4 Weapon 2 | . 1 1 3 Tool/Special . | . . . . Unused Backups 28 | . 7 1 20 Power 4 | . 1 . 3 Propulsion 8 | . 4 . 4 Utility 9 | . 1 1 7 Weapon 7 | . 1 . 6 Tool/Special . | . . . . Average Slot Usage (%) 98 | . 97 99 99 Engine 12 | . 13 14 10 Leg 30 | . 28 28 32 Device 1 | . . . 3 Storage 12 | . 14 14 11 Hackware 2 | . . . 4 Protection 13 | . 12 13 13 Energy Gun 2 | . 4 . 1 Ballistic Gun 21 | . 23 28 18 Ballistic Cannon 1 | . . . 2 Peak Build Rating 18 | 5 8 10 18 Average Rating 11 | 4 6 8 15 On Entrance 5 | . 5 8 10 Avg Prop Armor Cover (%) 5 | . . . 5 Naked Turns . | . . . . Heaviest Build 36 | 8 19 19 36 Greatest Support 36 | 20 20 23 36 Greatest Overweight (x) 2 | 2 . . 1 Average Overweight (x) . | . . . . Largest Inventory Capacity 15 | 8 10 10 15 Average Capacity 11 | 7 8 10 13 Most Carried 15 | 5 10 10 15 Average Carried 10 | 2 7 9 13 Final Capacity 15 | 8 10 10 15 Final Carried 15 | 5 10 10 15 Class Distribution -------------------- 68% | Mutant 31% | Scavenger-Mutant Dominant Class ---------------- Mutant | -10/Materials Mutant | -10/Mines Scavenger-Mutant | -9/Materials Resources | -11 -10 -10 -9 ----------- Run | Yrd Mat Min Mat Matter Collected 1332 | 213 292 119 708 Remotely . | . . . . Salvage Created 1520 | . 494 43 983 Parts 109 | . 43 4 62 Haulers Intercepted . | . . . . Recyclers Shooed 1 | . . . 1 Parts Field Recycled . | . . . . Retrieved Matter . | . . . . Parts Self-Destructed . | . . . . Prevented . | . . . . Parts Restored . | . . . . Kills | -11 -10 -10 -9 ------- Run | Yrd Mat Min Mat Combat Hostiles Destroyed 41 | . 15 3 23 Guns 38 | . 15 3 20 Cannons 3 | . . . 3 Classes Destroyed 6 | . 4 . 2 Worker 2 | . 2 . . Watcher 5 | . 3 . 2 Swarmer 15 | . 9 3 3 Grunt 19 | . 6 . 13 Brawler 2 | . . . 2 Sentry 5 | . . . 5 Best Kill Streak 4 | . 4 3 4 Combat Bots Only 4 | . 3 3 4 Max Kills in Single Turn 2 | . 2 1 2 Gunslinging 1 | . 1 . . Exploded . | . . . . Melee . | . . . . Uniques/NPCs Destroyed . | . . . . Combat | -11 -10 -10 -9 -------- Run | Yrd Mat Min Mat Hostile Shots Fired 296 | . 68 15 213 Missed 69 | . 23 2 44 Hits 227 | . 45 13 169 Melee 5 | . . . 5 Projectile 222 | . 45 13 164 Damage Taken 2590 | . 398 104 2088 Core 467 | . 30 31 406 Absorbed by Shields . | . . . . Redirected to Shielding 47 | . 14 3 30 Regen/Repaired (Parts) 66 | . 66 . . Core Remaining (%) 87 | 100 . 75 . Volleys Fired 151 | . 62 6 83 Largest 2 | . 2 2 2 Hottest 89 | . 60 40 89 Shots Fired 301 | . 124 12 165 Gun 287 | . 124 12 151 Cannon 14 | . . . 14 Launcher . | . . . . Special . | . . . . Kinetic 264 | . 91 12 161 Thermal 34 | . 33 . 1 Explosive . | . . . . Electromagnetic 3 | . . . 3 Robot Hit Streak 13 | . 13 1 12 Robot Miss Streak 6 | . 6 2 5 Penetration Max . | . . . . Secondary Targets 6 | . 2 1 3 Max Gunslinging Chain 1 | . 1 1 1 Shots Hit Robots 177 | . 61 5 111 Core Hits 77 | . 30 3 44 Critical Kills . | . . . . Critical Parts Destroyed 2 | . 2 . . Critical Strikes 3 | . 2 . 1 Burn 1 | . . . 1 Destroy 2 | . 2 . . Melee Attacks . | . . . . Impact . | . . . . Slashing . | . . . . Piercing . | . . . . Sneak Attacks . | . . . . Combat Hostiles . | . . . . Follow-up Attacks . | . . . . Damage Inflicted 2281 | . 720 61 1500 Guns 2120 | . 720 53 1347 Cannons 153 | . . . 153 Explosions . | . . . . Melee . | . . . . Ramming 8 | . . 8 . Kinetic 1979 | . 496 53 1430 Thermal 239 | . 224 . 15 Explosive . | . . . . Electromagnetic 55 | . . . 55 Impact . | . . . . Slashing . | . . . . Piercing . | . . . . Highest Corruption 8 | . . . 8 Average Corruption 5 | . . . 5 Corruption Purged . | . . . . Corruption Blocked . | . . . . Effects 26 | . . . 26 Message Errors 3 | . . . 3 Matter Fused 10 | . . . 10 Energy Discharges 2 | . . . 2 Parts Fused 1 | . . . 1 Data Loss (minor) 6 | . . . 6 Data Loss (major) 3 | . . . 3 Alerts 1 | . . . 1 Overload Shots . | . . . . Overflow Damage . | . . . . Projectiles . | . . . . Explosions . | . . . . Melee . | . . . . Knockbacks 1 | . . . 1 Impact . | . . . . Kinetic 1 | . . . 1 Secondary . | . . . . Self-Inflicted Damage . | . . . . Shots . | . . . . Rammed . | . . . . Targets Rammed 1 | . . 1 . Kicked 1 | . . 1 . Crushed . | . . . . Highest Temperature 216 | . 30 . 216 Average Temperature 40 | . 15 . 47 Received Heat Transfer 933 | . 72 . 861 Siege Activations . | . . . . Martial Activations . | . . . . Shielding Activations . | . . . . Robots Disrupted . | . . . . Combat Hostiles . | . . . . Robots Corrupted . | . . . . Combat Hostiles . | . . . . Parts Fried . | . . . . Impact Corruptions . | . . . . Robots Melted . | . . . . Combat Hostiles . | . . . . Parts Melted . | . . . . Heat Transferred 611 | . 500 . 111 Parts Sabotaged . | . . . . Parts Stolen . | . . . . Parts Stripped . | . . . . Power Chain Reactions . | . . . . Alert | -11 -10 -10 -9 ------- Run | Yrd Mat Min Mat Maximum Alert Level 1 | . 1 . . Low Security (%) 98 | 100 96 100 100 Level 1 1 | . 3 . . Level 2 . | . . . . Level 3 . | . . . . Level 4 . | . . . . Level 5 . | . . . . High Security . | . . . . Max Security . | . . . . Peak Influence 205 | . 205 60 129 Initial 60 | . . 60 . Average 68 | . 120 20 51 Influence Increases 1243 | . 526 70 647 Destroy 0b10 Robot/C 820 | . 300 60 460 Destroy 0b10 Robot/NC 35 | . 25 . 10 Destroy Leader 200 | . 76 10 114 Successful Hack 67 | . 35 . 32 Disable Machine 15 | . . . 15 Destroy Structure 1 | . . . 1 Lose Combat Pursuer 105 | . 90 . 15 Influence Decreases 1163 | . 370 226 567 Entered New Map 96 | . . 96 . Time Decay 940 | . 370 130 440 Lost Part 127 | . . . 127 Squads Dispatched 7 | . 4 . 3 Investigation 3 | . 2 . 1 Extermination . | . . . . Reinforcement 4 | . 2 . 2 Assault . | . . . . Garrison . | . . . . Intercept . | . . . . Searches Triggered . | . . . . Construction Impeded . | . . . . Haulers Reinforced . | . . . . Active Scanning Responses . | . . . . Cargo Convoy Interrupts . | . . . . Stealth | -11 -10 -10 -9 --------- Run | Yrd Mat Min Mat Distress Signals 2 | . . . 2 Communications Jammed . | . . . . Distress Signals . | . . . . Times Spotted 81 | . 29 6 46 Peak Tracking Total 9 | . 4 3 9 Tactical Retreats 5 | . 4 . 1 Traps | -11 -10 -10 -9 ------- Run | Yrd Mat Min Mat Traps Triggered 4 | . 3 . 1 Indirectly . | . . . . Trap Hack Attempts . | . . . . Triggered . | . . . . Disarmed . | . . . . Reprogrammed . | . . . . Reused . | . . . . Traps Extracted . | . . . . Installed . | . . . . Triggered . | . . . . Machines | -11 -10 -10 -9 ---------- Run | Yrd Mat Min Mat Machines Disabled 1 | . . . 1 Max in Single Turn 1 | . . . 1 Machines Repaired . | . . . . Machines Dismantled . | . . . . Machines Sabotaged . | . . . . Overloaded Fab Kills . | . . . . Hacking | -11 -10 -10 -9 --------- Run | Yrd Mat Min Mat Machines Accessed 14 | . 8 . 6 Terminals 10 | . 6 . 4 Fabricators . | . . . . Repair Stations 2 | . 1 . 1 Recycling Units 1 | . 1 . . Scanalyzers 1 | . . . 1 Garrison Access . | . . . . Total Hacks 48 | . 26 . 22 Successful 17 | . 10 . 7 Failed 29 | . 15 . 14 Catastrophic 6 | . 2 . 4 Database Lockouts 2 | . 1 . 1 Manual 26 | . 15 . 11 Terminals 35 | . 20 . 15 Fabricators . | . . . . Repair Stations 9 | . 5 . 4 Recycling Units 1 | . 1 . . Scanalyzers 3 | . . . 3 Garrison Access . | . . . . Terminal Hacks 9 | . 5 . 4 Record 1 | . . . 1 Robot Analysis 1 | . 1 . . Prototype ID Bank 1 | . . . 1 Branch Access Points 2 | . 1 . 1 Locate Traps 2 | . 2 . . Registered Components 1 | . . . 1 Zone Layout 1 | . 1 . . Fabricator Hacks . | . . . . Repair Station Hacks 5 | . 4 . 1 Scan Component 3 | . 2 . 1 Repair 2 | . 2 . . Recycling Unit Hacks 1 | . 1 . . Report Inventory 1 | . 1 . . Scanalyzer 2 | . . . 2 Retrieve Study 2 | . . . 2 Garrison Access Hacks . | . . . . Unauthorized Hacks . | . . . . Terminals . | . . . . Fabricators . | . . . . Repair Stations . | . . . . Recycling Units . | . . . . Scanalyzers . | . . . . Garrison Access . | . . . . Data Cores Recovered . | . . . . Used . | . . . . Hacking Detections 13 | . 7 . 6 Full Trace Events 2 | . . . 2 Feedback Events . | . . . . Feedback Blocked . | . . . . Robot Schematics Acquired . | . . . . Robots Built . | . . . . Authchips . | . . . . Time . | . . . . Total Robot Build Rating . | . . . . Part Schematics Acquired . | . . . . Parts Built . | . . . . Authchips . | . . . . Time . | . . . . Total Part Build Rating . | . . . . Part Studies Acquired 2 | . . . 2 Parts Repaired 2 | . 2 . . Time 52 | . 52 . . Parts Recycled . | . . . . Recycled Matter . | . . . . Retrieved Matter . | . . . . Retrieved Components . | . . . . Parts Scanalyzed . | . . . . Part Schematics Acquired . | . . . . Parts Damaged . | . . . . Bothacking | -11 -10 -10 -9 ------------ Run | Yrd Mat Min Mat Used RIF Installer . | . . . . Robots Hacked . | . . . . Non-combat . | . . . . Combat . | . . . . Robot Hacks Applied . | . . . . Relay Couplers Released . | . . . . Fabnet Peak Effective % . | . . . . Robots Rewired . | . . . . Allies Hacked . | . . . . Hacks Repelled . | . . . . Allies | -11 -10 -10 -9 -------- Run | Yrd Mat Min Mat Total Allies . | . . . . Largest Group . | . . . . Highest-Rated Group . | . . . . Highest-Rated Ally . | . . . . Total Orders . | . . . . Ally Attacks . | . . . . Total Damage . | . . . . Kills . | . . . . Allies Corrupted . | . . . . Allies Melted . | . . . . Intel | -11 -10 -10 -9 ------- Run | Yrd Mat Min Mat Active Infowar (turns) 595 | . . . 595 Sensors 595 | . . . 595 Robot Analysis Total 1 | . 1 . . Derelict Logs Recovered 1 | . . 1 . Drone Launches . | . . . . Drone Recoveries . | . . . . Exploration | -11 -10 -10 -9 ------------- Run | Yrd Mat Min Mat Turns Passed 3518 | 80 1096 384 1958 Spaces Moved 1929 | 58 609 281 981 Core 11 | 11 . . . Treads . | . . . . Legs 1918 | 47 609 281 981 Wheels . | . . . . Hover . | . . . . Flight . | . . . . Fastest Speed 50 | 50 120 120 110 Average Speed 129 | 117 120 120 138 Slowest Speed 185 | 150 120 120 185 Overloaded Moves . | . . . . Propulsion Burnouts . | . . . . Robots Hopped . | . . . . Potential Cave-ins . | . . . . Cave-ins Triggered . | . . . . Exploration Rate (%) 49 | 4 91 45 56 Regions Visited 3 Branch Regions 1 Pre-discovered Areas 1 | . . 1 . Known Exits Taken 1 | . 1 . . Unknown Exits Taken 2 | 1 . 1 . Scrap Searched . | . . . . Spaces Dug . | . . . . Terrain Destroyed 1 | . . . 1 Melee . | . . . . Projectile 1 | . . . 1 AOE . | . . . . Terrain Rammed . | . . . . Walls Destroyed . | . . . . Machines Disabled . | . . . . Actions | -11 -10 -10 -9 --------- Run | Yrd Mat Min Mat Total 2684 | 67 864 318 1435 Wait 464 | . 153 24 287 Move 1926 | 57 608 280 981 Hop . | . . . . Pick Up 49 | 5 15 2 27 Fast Attach 15 | 5 5 . 5 Attach 16 | . 2 1 13 Detach . | . . . . Swap 20 | . 5 1 14 Drop 42 | . 14 3 25 Fire 151 | . 62 6 83 Melee . | . . . . Ram . | . . . . Kick 1 | . . 1 . Crush . | . . . . Escape Stasis . | . . . . Rewire . | . . . . Trap . | . . . . Miscellaneous . | . . . . Route ------- -11/Scrapyard -10/Materials (discovered 5 exits: *Mat x3 / *Min x2) -10/Mines (discovered 3 exits: *Mat x2 / [*Exi]) -9/Materials (discovered 3 exits: [*Mat x2] / Min) History --------- Turn | Location | Event 15 | -11/Scrapyard | Discovered new exit (range 15) 81 | -11/Scrapyard | Entered Materials 300 | -10/Materials | Build established: Mutant 487 | -10/Materials | Repaired Assault Rifle 515 | -10/Materials | Repaired Ion Engine 761 | -10/Materials | Discovered new exit (range 9) 934 | -10/Materials | Discovered new exit (range 7) 948 | -10/Materials | Discovered new exit (range 16) 965 | -10/Materials | Identified exit to Mines 1106 | -10/Materials | Discovered new exit (range 15) 1120 | -10/Materials | Central database locked down 1177 | -10/Materials | Entered Mines 1292 | -10/Mines | Discovered new exit (range 7) 1296 | -10/Mines | Received a Rocket Launcher from a helpful Derelict 1384 | -10/Mines | Assembled infested the area 1406 | -10/Mines | Deemed a non-threat by the Exiles lab entrance 1406 | -10/Mines | Discovered new exit (range 5) 1480 | -10/Mines | Discovered new exit (range 7) 1512 | -10/Mines | Found a Scrap Suit stashed away for nefarious purposes 1520 | -10/Mines | Found Scrap Suit 1561 | -10/Mines | Entered Materials 1561 | -9/Materials | Evolved 2 slots: Propulsion x1, Utility x1 1867 | -9/Materials | Central database locked down 2222 | -9/Materials | Discovered new exit (range 3) 2474 | -9/Materials | Build established: Scavenger-Mutant 2841 | -9/Materials | Discovered new exit (range 5) 2900 | -9/Materials | Core integrity fell below 50% 3116 | -9/Materials | Core integrity fell below 20% 3152 | -9/Materials | Lost 10 parts (2p3n2u3w) 3396 | -9/Materials | Identified exit to Mines 3519 | -9/Materials | Destroyed by G-34 Mercenary with Small Laser Last Messages --------------- >>Access(Branch) Found 1 branch access point: (48,49) Mines Map updated. 03396_ ALERT: Suspicious activity at Terminal M003. Dispatching Investigation squad. 03435_ System corrupted: Matter fused (-6). 03443_ G-34 Mercenary suffers critical hit (Burn). 03443_ G-34 Mercenary destroyed. 03444_ K-01 Serf collects debris. 03450_ Dropped Aluminum Leg. 03456_ K-01 Serf cleans the Nuclear Reactor. 03478_ System corrupted: Component data lost. 03479_ K-01 Serf cleans the Nuclear Reactor. 03483_ Dropped Corrupted Aluminum Leg. 03489_ Acquired Aluminum Leg. 03490_ K-01 Serf cleans the Nuclear Reactor. 03493_ System corrupted: Component data lost. 03508_ MKEHRITT1SVU,/VSY 0O0QZERGTFZU 03516_ K-01 Serf cleans the Integration Channel. Map ----- +----------------------------------------------------+ | ?????????????????????????????????????????????????? | | ?????????????????????????????????????????????????? | | ?????????????????????????????????????????????????? | | ???????????????????????????????????!?????????????? | | ?????????????????????????????????????????????????? | | ?????????????????###########?????????????????????? | | ?????????????????# #?????????????????????? | | ????????????###+## #?????????????????????? | | ??????????### # #?????????????????????? | | ??????????? # #?????????????????????? | | ???????????? # #?? ????????????????? | | ????????????? # #?# ????????????????? | | ??????######## ## #?# ????? ?????????? | | ??????# # ## !%[ #?# ??? ???????? | | ??????# """ + ####/######### ??? #??????? | | ??????# """ # = + # "?? #??????? | | ??????# """ # # " # ""? #??????? | | ???#??# # """ # """ # """ #??????? | | ???# ?# "T" # """ # """ # """ #??????? | | ???# ######### """ # """ # """ " #??????? | | ???# # "" # " "% #??????? | | ???# % + """ # #??????? | | ???# ####+####### r "" # g #??????? | | ???# ^ # * #?# uk"" # #??????? | | ???# # % #?# "kw/ ###????? | | ???# + """ #?# @ # ?? | | ???# ##### """""#?######### * ?? | | ??????????# """""#?????????# ############????? | | ??????????# """""#?????????# %*#???????????????? | | ??????????# """ #?????????#[=!#???????????????? | | ??????????# #?????????#%= #???????????????? | | ??????????# #?????????#/% ##??????????????? | | ??????????##########?????????# =*##??????????????? | | ?????????#######?????????????# ##??????????????? | | ?????????# ###############% !#???????????????? | | ?????????#"" # % ! #???????????????? | | ?????????#"T # [ #???????????????? | | ?????????#"" #! #???????????????? | | ?????????# !+ """" #???????????????? | | ?????????# # """" #???????????????? | | ?????????# # """" #???????????????? | | ?????????####### "T" #???????????????? | | ???????????# """ #???????????????? | | ???????????# < % #???????????????? | | ???????????# #???????????????? | | ???????????##### ########### ###########?????? | | ????????######## #??# # # #?????? | | ????????# # #??# # # #??>??? | | ????????# # #??# """ / # #?????? | | ????????# # #### """ # # #?????? | +----------------------------------------------------+ Best States ------------- Heat Dissipation 28 Energy Generation 14 Energy Capacity 265 Matter Stores 300 Matter Capacity 300 Sight Range 16 Robot Scan Range 14 Terrain Scan Density 10 Armor Coverage 150 Power Shielding 33 Utility Shielding 66 Evasion (%) 55 Defensive Hacking 10 Item Schematics ----------------- None Robot Schematics ------------------ None Fabricated ------------ Nothing Repaired ---------- Assault Rifle | 60% | -10/Materials Ion Engine | 56% | -10/Materials Studied --------- Imp. Aluminum Leg | -9/Materials | Hacked Imp. Ion Engine | -9/Materials | Hacked Alien Tech Used ----------------- None Achievements -------------- None Challenges ------------ None Game ------ Seed FlakMultireflexFlakker Manual? 0 Play Time 00:37:39 Cumulative 19.5 hours Start 2026.02.11 @ 16:23:27 End 2026.02.11 @ 17:03:25 Sessions 1 Manual Loads 0 Difficulty Rogue Special Mode None Game No. 21 Rogue 15 Adventurer 6 Explorer 0 Win Type - Total 0 Types 0/0/0/0/0/0/0/0/0/0 Lore% 12 Gallery% 17 Achievement% 17 Wizard Run 0 Options --------- Layout 0 ASCII 0 Keyboard 1 Movement Numpad Keybinds 0 Fullscreen 1 Font 24/Smallcaps Map View 76x50 Zoom Use 0% Tactical HUD 1 Map Filters NONE Filters NONE Steam 1 RUN: 6a626d83-7b7b-49a1-85cc-20ec4dd08407